bitfinex/quotes_SOLUSD_20250705
["timestamp","ask_amount","ask_price","bid_price","bid_amount"]
[1751712316362,5.11097891,148.26,148.25,6.74536256]
[1751712317748,0.06,148.26,148.25,6.74536256]
[1751712318466,0.06,148.26,148.25,10.56822646]
[1751712318671,0.06,148.26,148.25,30.76157532]
[1751712318972,0.06,148.26,148.25,30.90373689]
[1751712321478,0.06,148.26,148.25,12.11192646]
[1751712324092,0.06,148.26,148.25,8.28906256]
[1751712324290,0.06,148.26,148.25,12.11192646]
[1751712324529,0.06,148.26,148.25,8.28906256]
[1751712324700,0.06,148.26,148.25,12.11192646]
[1751712337108,0.06,148.26,148.25,12.14192646]
[1751712347720,0.06,148.26,148.25,10.59822646]
[1751712370935,0.06,148.26,148.25,29.24787532]
[1751712371141,1e-08,148.26,148.25,29.39003689]
[1751712381770,1e-08,148.26,148.25,25.42501142]
[1751712381946,1e-08,148.26,148.25,29.24787532]
[1751712416913,1e-08,148.26,148.25,29.39003689]
[1751712418436,1e-08,148.28,148.27,0.14216157]
[1751712418639,1e-08,148.28,148.27,56.51467433]
[1751712419021,1e-08,148.28,148.27,68.80213511]
[1751712419324,1e-08,148.28,148.27,72.18430634]
[1751712420839,1e-08,148.28,148.27,66.64129824]
[1751712425946,0.2,148.31,148.3,44.79181043]
[1751712426256,0.2,148.31,148.3,82.51467433]
[1751712426449,0.2,148.31,148.3,78.69181043]
[1751712426625,0.2,148.31,148.3,82.51467433]
[1751712427865,0.2,148.31,148.3,89.25776266]
[1751712439660,0.2,148.31,148.3,85.29273719]
[1751712439968,0.2,148.31,148.3,66.62308833]
[1751712442887,0.2,148.31,148.3,32.74308833]
[1751712443088,0.2,148.31,148.3,66.64308833]
[1751712444991,0.2,148.31,148.3,32.74308833]
[1751712445157,0.2,148.31,148.3,66.64308833]
[1751712447791,0.2,148.31,148.3,70.46595223]
[1751712447974,0.2,148.31,148.3,66.64308833]
[1751712448899,0.2,148.31,148.3,32.74308833]
[1751712449196,0.2,148.31,148.3,66.64308833]
[1751712453610,0.2,148.31,148.3,70.46595223]
[1751712453994,0.2,148.31,148.3,89.25776266]
[1751712455419,0.2,148.31,148.3,85.43489876]
[1751712455608,0.2,148.31,148.3,89.25776266]
[1751712463929,0.2,148.31,148.3,89.11560109]
[1751712465237,0.2,148.31,148.3,85.29273719]
[1751712465715,0.2,148.31,148.3,89.11560109]
[1751712475132,0.2,148.31,148.3,85.29273719]
[1751712476737,0.2,148.31,148.3,89.11560109]
[1751712480342,0.2,148.31,148.3,85.29273719]
[1751712481345,0.2,148.31,148.3,89.11560109]
[1751712485540,0.2,148.31,148.3,85.29273719]
[1751712485756,0.2,148.31,148.3,32.74308833]
[1751712485933,5.25650555,148.31,148.3,32.74308833]
[1751712490872,0.2,148.31,148.3,32.74308833]
[1751712496948,0.2,148.31,148.3,36.56595223]
[1751712498478,0.2,148.31,148.3,55.21560109]
[1751712511570,0.2,148.31,148.3,51.39273719]
[1751712511772,0.2,148.31,148.3,55.21560109]
[1751712514467,0.2,148.31,148.3,51.39273719]
[1751712514670,0.2,148.31,148.3,55.21560109]
[1751712522701,5.25293152,148.31,148.3,55.21560109]
[1751712524609,0.2,148.31,148.3,55.21560109]
[1751712525880,5.25298085,148.31,148.3,32.74308833]
[1751712526082,5.25298085,148.31,148.3,66.62308833]
[1751712530180,5.25298085,148.31,148.3,32.74308833]
[1751712534827,5.25298085,148.31,148.3,36.56595223]
[1751712537026,5.25298085,148.31,148.3,10.56595223]
[1751712538418,0.2,148.31,148.3,36.56595223]
[1751712538824,0.2,148.31,148.3,55.21560109]
[1751712539119,0.2,148.31,148.3,55.35776266]
[1751712539328,1e-08,148.31,148.3,55.35776266]
[1751712540626,1e-08,148.31,148.3,29.35776266]
[1751712550824,1e-08,148.32,148.31,0.14216157]
[1751712551040,1e-08,148.32,148.31,56.49467433]
[1751712551546,1e-08,148.32,148.31,56.99467433]
[1751712552547,1e-08,148.32,148.31,63.737308]
[1751712553052,1e-08,148.33,148.31,63.737308]
[1751712553220,1e-08,148.33,148.32,3.96502547]
[1751712553639,1e-08,148.33,148.32,0.14216157]
[1751712553946,1e-08,148.33,148.32,44.64964886]
[1751712554147,1e-08,148.33,148.32,26.0]
[1751712554358,3.82286391,148.33,148.31,7.24263367]
[1751712554531,3.82286391,148.33,148.32,26.0]
[1751712555456,3.82286391,148.33,148.32,32.74217907]
[1751712555662,3.82286391,148.33,148.32,26.0]
[1751712556859,8.87134202,148.33,148.32,26.0]
[1751712561565,8.87134202,148.33,148.32,32.74217907]
[1751712563069,8.87134202,148.33,148.32,26.0]
[1751712563771,5.04847812,148.33,148.32,26.0]
[1751712565162,5.04847812,148.33,148.32,32.74217907]
[1751712572081,1e-08,148.33,148.32,32.74217907]
[1751712573887,5.05022716,148.33,148.32,32.74217907]
[1751712579368,5.05022716,148.33,148.32,6.74217907]
[1751712579774,8.87309106,148.33,148.32,6.74217907]
[1751712579988,8.87309106,148.33,148.31,32.74248027]
[1751712580297,5.05022715,148.32,148.31,32.74248027]
[1751712589098,5.05022715,148.32,148.31,36.56534417]
[1751712589595,1e-08,148.33,148.31,36.56534417]
[1751712591401,1e-08,148.33,148.32,3.8228639]
[1751712591590,5.05259675,148.33,148.32,3.8228639]
[1751712593006,5.05259675,148.33,148.32,10.56504297]
[1751712600319,5.05259675,148.33,148.32,6.74217907]
[1751712602020,5.05793527,148.33,148.32,6.74217907]
[1751712603714,5.05793527,148.33,148.32,10.56504297]
[1751712607621,1e-08,148.33,148.32,10.56504297]
[1751712607928,5.05620192,148.33,148.32,10.56504297]
[1751712609128,1e-08,148.33,148.32,10.56504297]
[1751712609624,1e-08,148.33,148.32,29.21469183]
[1751712618223,1e-08,148.34,148.32,44.648309]
[1751712618422,1e-08,148.34,148.33,63.7428639]
[1751712620445,1e-08,148.34,148.33,70.48458843]
[1751712620744,1e-08,148.34,148.33,36.56458843]
[1751712622039,1e-08,148.34,148.33,6.74172453]
[1751712622345,5.04879615,148.34,148.33,32.74172453]
[1751712627239,5.04879615,148.34,148.33,36.56458843]
[1751712627943,5.04879615,148.34,148.33,32.74172453]
[1751712631971,5.04879615,148.34,148.33,36.56458843]
[1751712644077,5.04879615,148.34,148.33,32.74172453]
[1751712656587,5.04879615,148.34,148.33,36.56458843]
[1751712658095,5.04879615,148.34,148.33,32.74172453]
[1751712658281,5.04879615,148.34,148.33,36.56458843]
[1751712659903,5.04879615,148.34,148.33,55.21423729]
[1751712660101,0.2,148.35,148.33,55.21423729]
[1751712660401,0.2,148.35,148.34,22.47251276]
[1751712663209,0.2,148.35,148.34,29.21378281]
[1751712666986,0.2,148.35,148.34,63.09378281]
[1751712670024,0.2,148.35,148.34,59.27091891]
[1751712670198,0.2,148.35,148.34,63.09378281]
[1751712671590,0.2,148.35,148.34,63.12378281]
[1751712676710,0.2,148.35,148.34,29.24378281]
[1751712681224,0.2,148.35,148.34,6.77127005]
[1751712681641,5.24988244,148.35,148.34,6.77127005]
[1751712689847,5.24988244,148.35,148.34,0.03]
[1751712706196,9.07274634,148.35,148.34,0.03]
[1751712710381,15.81356197,148.35,148.34,0.03]
[1751712710564,9.07274634,148.35,148.34,0.03]
[1751712712101,15.81356197,148.35,148.34,0.03]
[1751712717493,9.07274634,148.35,148.34,0.03]
[1751712717727,15.81356197,148.35,148.34,0.03]
[1751712722233,15.81103274,148.35,148.34,0.03]
[1751712732243,23.77938582,148.35,148.34,0.03]
[1751712732457,36.11984317,148.35,148.26,6.74476378]
[1751712732627,36.11984317,148.35,148.25,6.1699]
[1751712732628,6.74263367,148.31,148.25,6.77527534]
[1751712732822,5.04735321,148.3,148.25,0.03]
[1751712733023,5.04735321,148.29,148.25,0.03]
[1751712733238,5.04735321,148.28,148.25,0.03]
[1751712733445,5.04735321,148.27,148.25,0.03]
[1751712733620,5.04735321,148.3,148.25,0.03]
[1751712733821,5.04735321,148.29,148.25,0.03]
[1751712734022,5.04735321,148.28,148.25,0.03]
[1751712734224,5.04735321,148.29,148.25,0.03]
[1751712734434,5.04735321,148.28,148.25,0.03]
[1751712735222,3.8228639,148.26,148.25,0.03]
[1751712735533,8.87021711,148.26,148.25,0.03]
[1751712735726,10.56777149,148.26,148.25,0.03]
[1751712735929,15.6151247,148.26,148.25,0.03]
[1751712736145,10.56777149,148.26,148.25,0.03]
[1751712736644,15.6151247,148.26,148.25,0.03]
[1751712737426,10.56777149,148.26,148.25,0.03]
[1751712737630,15.6151247,148.26,148.25,0.03]
[1751712737834,10.56777149,148.26,148.25,0.03]
[1751712738054,15.6151247,148.26,148.25,0.03]
[1751712738230,10.70993306,148.26,148.25,0.03]
[1751712738868,15.75728627,148.26,148.25,0.03]
[1751712739034,10.70993306,148.26,148.25,0.03]
[1751712740739,15.75728627,148.26,148.25,0.03]
[1751712748767,15.75728627,148.26,148.24,0.03]
[1751712748768,18.64964886,148.25,148.24,0.03]
[1751712749069,0.14216157,148.24,148.21,0.03]
[1751712749261,3.8228639,148.22,148.21,0.03]
[1751712751060,10.56959173,148.22,148.21,0.03]
[1751712760652,5.01616467,148.23,148.21,0.03]
[1751712760653,8.83902857,148.23,148.21,0.03]
[1751712760868,3.8228639,148.23,148.21,0.03]
[1751712761080,3.8228639,148.22,148.21,0.03]
[1751712776768,3.8228639,148.23,148.21,0.03]
[1751712777181,8.83426783,148.23,148.21,0.03]
[1751712777599,5.07140393,148.24,148.21,0.03]
[1751712777894,5.07140393,148.24,148.22,3.8228639]
[1751712777895,0.06,148.24,148.22,3.8228639]
[1751712778090,0.06,148.24,148.21,3.8528639]
[1751712778308,0.06,148.24,148.21,0.03]
[1751712779167,5.07140393,148.24,148.21,6.77718305]
[1751712780597,8.89426783,148.24,148.21,6.77718305]
[1751712780796,3.8828639,148.24,148.21,6.77718305]
[1751712781108,8.89426783,148.24,148.21,6.77718305]
[1751712781412,3.8828639,148.24,148.21,6.77718305]
[1751712781578,8.89426783,148.24,148.21,6.77718305]
[1751712781779,3.8828639,148.24,148.21,6.77718305]
[1751712782093,3.8228639,148.22,148.21,0.03]
[1751712782476,8.83426783,148.22,148.21,0.03]
[1751712782680,3.8228639,148.22,148.21,0.03]
[1751712782888,8.83426783,148.22,148.21,0.03]
[1751712783087,3.8228639,148.22,148.21,0.03]
[1751712783288,8.83426783,148.22,148.21,0.03]
[1751712783800,5.01140393,148.22,148.21,0.03]
[1751712786304,8.83426783,148.22,148.21,0.03]
[1751712787005,5.01140393,148.22,148.21,0.03]
[1751712789013,8.83426783,148.22,148.21,0.03]
[1751712792808,15.58099566,148.22,148.21,0.03]
[1751712803738,8.83426783,148.22,148.21,0.03]
[1751712805953,15.58099566,148.22,148.21,0.03]
[1751712806244,21.84206064,148.22,148.21,0.03]
[1751712824882,11.27246891,148.22,148.21,0.03]
[1751712825082,15.09533281,148.22,148.21,0.03]
[1751712825755,15.20365529,148.22,148.21,0.03]
[1751712839773,5.05812951,148.22,148.21,0.03]
[1751712839974,8.88099341,148.22,148.21,0.03]
[1751712844997,8.88446487,148.22,148.21,0.03]
[1751712852625,15.6311927,148.22,148.21,0.03]
[1751712857913,8.88446487,148.22,148.21,0.03]
[1751712858220,15.6311927,148.22,148.21,0.03]
[1751712863100,21.95819392,148.22,148.21,0.03]
[1751712867426,18.13533002,148.22,148.21,0.03]
[1751712867728,21.95819392,148.22,148.21,0.03]
[1751712875734,15.21146609,148.22,148.21,0.03]
[1751712875929,11.38860219,148.22,148.21,0.03]
[1751712876231,5.06160097,148.22,148.21,0.03]
[1751712883236,8.88446487,148.22,148.21,0.03]
[1751712886236,3.8228639,148.22,148.21,0.03]
[1751712886436,8.88622325,148.22,148.21,0.03]
[1751712886625,15.21542244,148.22,148.21,0.03]
[1751712888850,11.39255854,148.22,148.21,0.03]
[1751712889029,15.21570194,148.22,148.21,0.03]
[1751712892936,11.39283804,148.22,148.21,0.03]
[1751712898860,15.21570194,148.22,148.21,0.03]
[1751712901857,11.39283804,148.22,148.21,0.03]
[1751712911368,5.06348357,148.22,148.21,0.03]
[1751712911677,11.39283804,148.22,148.21,0.03]
[1751712912040,15.21570194,148.22,148.21,0.03]
[1751712913167,11.39283804,148.22,148.21,0.03]
[1751712917866,5.06348357,148.22,148.21,0.03]
[1751712923278,8.88634747,148.22,148.21,0.03]
[1751712923775,15.21638575,148.22,148.21,0.03]
[1751712932582,8.88634747,148.22,148.21,0.03]
[1751712935972,15.6330753,148.22,148.21,0.03]
[1751712937092,11.8102114,148.22,148.21,0.03]
[1751712937390,15.6330753,148.22,148.21,0.03]
[1751712946504,8.88634747,148.22,148.21,0.03]
[1751712951110,5.06348357,148.22,148.21,0.03]
[1751712952405,8.88634747,148.22,148.21,0.03]
[1751712963921,3.8228639,148.22,148.21,0.03]
[1751712964097,8.88728624,148.22,148.21,0.03]
[1751712964828,8.88728624,148.22,148.18,16.4692109]
[1751712964995,5.06442234,148.21,148.18,16.4692109]
[1751712965194,5.06442234,148.2,148.18,16.4692109]
[1751712965394,5.06442234,148.19,148.18,16.4692109]
[1751712968331,5.06442234,148.19,148.18,16.4992109]
[1751712969494,5.06442234,148.19,148.18,12.676347]
[1751712975729,5.06442234,148.19,148.18,16.4992109]
[1751712978511,5.06442234,148.19,148.18,12.676347]
[1751712979741,5.06442234,148.19,148.18,16.4992109]
[1751712984645,5.12442234,148.19,148.18,16.4992109]
[1751712986948,5.12442234,148.19,148.18,12.676347]
[1751712989136,5.12442234,148.19,148.18,6.778547]
[1751712997752,5.12442234,148.19,148.18,0.03]
[1751713007266,8.94728624,148.19,148.18,0.03]
[1751713007471,22.02894939,148.19,148.18,0.03]
[1751713007641,15.69673171,148.19,148.18,0.03]
[1751713007848,24.13566397,148.19,148.16,0.03]
[1751713008148,27.69593187,148.17,148.16,0.03]
[1751713008347,50.18009365,148.17,148.16,0.03]
[1751713008548,77.39982922,148.17,148.16,0.03]
[1751713009565,84.14883374,148.17,148.16,0.03]
[1751713010061,13.49369929,148.17,148.16,0.03]
[1751713010258,21.9513223,148.17,148.16,0.03]
[1751713010460,15.63764257,148.17,148.16,0.03]
[1751713010657,21.9513223,148.17,148.16,0.03]
[1751713011469,41.77980414,148.17,148.16,0.03]
[1751713012455,48.08588133,148.17,148.16,0.03]
[1751713012652,49.58588133,148.17,148.16,0.03]
[1751713016368,43.27980414,148.17,148.16,0.03]
[1751713018553,82.02698579,148.17,148.16,0.03]
[1751713020289,48.08588133,148.17,148.16,0.03]
[1751713020447,34.88863805,148.17,148.16,0.03]
[1751713020654,41.63764257,148.17,148.16,0.03]
[1751713020954,82.02698579,148.17,148.16,0.03]
[1751713023258,82.02698579,148.17,148.12,0.1]
[1751713023259,0.14216157,148.16,148.12,0.1]
[1751713023463,3.8228639,148.13,148.12,0.1]
[1751713030867,10.57369087,148.13,148.12,0.1]
[1751713032889,15.63946502,148.13,148.12,0.1]
[1751713033061,10.57369087,148.13,148.12,0.1]
[1751713033489,15.63946502,148.13,148.12,0.1]
[1751713033687,10.57369087,148.13,148.12,0.1]
[1751713034062,15.63946502,148.13,148.12,0.1]
[1751713034262,10.57369087,148.13,148.12,0.1]
[1751713035064,15.63946502,148.13,148.12,0.1]
[1751713035561,10.57369087,148.13,148.12,0.1]
[1751713035989,15.63946502,148.13,148.12,0.1]
[1751713036206,10.57369087,148.13,148.12,0.1]
[1751713041512,15.63946502,148.13,148.12,0.1]
[1751713041752,17.28162659,148.13,148.12,0.1]
[1751713045919,43.28162659,148.13,148.12,0.1]
[1751713046227,49.58770378,148.13,148.12,0.1]
[1751713047325,43.28162659,148.13,148.12,0.1]
[1751713047720,49.58770378,148.13,148.12,0.1]
[1751713048116,39.31660112,148.13,148.12,0.1]
[1751713048431,43.13946502,148.13,148.12,0.1]
[1751713050613,49.44554221,148.13,148.12,0.1]
[1751713052626,5.06577415,148.13,148.12,3.9228639]
[1751713055231,5.06577415,148.13,148.12,10.67414664]
[1751713056325,5.05198173,148.16,148.12,10.67414664]
[1751713056524,5.05198173,148.15,148.14,3.8228639]
[1751713057127,5.05198173,148.15,148.14,12.11333517]
[1751713057317,5.05198173,148.15,148.14,8.29047127]
[1751713057523,5.05198173,148.15,148.14,12.11333517]
[1751713059019,5.05198173,148.15,148.14,8.29047127]
[1751713061445,5.05198173,148.16,148.14,8.29047127]
[1751713061732,5.05198173,148.15,148.14,8.29047127]
[1751713061907,5.05198173,148.16,148.14,8.29047127]
[1751713062108,5.05198173,148.15,148.14,8.29047127]
[1751713062332,3.8228639,148.17,148.14,8.29047127]
[1751713062333,5.05198173,148.16,148.14,8.29047127]
[1751713062539,5.05198173,148.15,148.14,8.29047127]
[1751713062838,5.05198173,148.16,148.14,8.29047127]
[1751713063037,5.05198173,148.15,148.14,8.29047127]
[1751713063211,5.05198173,148.16,148.14,8.29047127]
[1751713063532,5.05198173,148.15,148.14,8.29047127]
[1751713063734,5.05198173,148.16,148.14,8.29047127]
[1751713063913,5.05198173,148.15,148.14,8.29047127]
[1751713064113,5.05198173,148.16,148.14,8.29047127]
[1751713064313,5.04393583,148.16,148.14,8.29047127]
[1751713064523,5.04393583,148.15,148.14,8.29047127]
[1751713064728,5.04393583,148.16,148.14,8.29047127]
[1751713064909,5.04393583,148.15,148.14,8.29047127]
[1751713065106,5.04393583,148.16,148.14,8.29047127]
[1751713065332,5.04393583,148.15,148.14,8.29047127]
[1751713065529,5.04393583,148.16,148.14,8.29047127]
[1751713065727,5.04393583,148.15,148.14,8.29047127]
[1751713065928,5.04393583,148.16,148.14,8.29047127]
[1751713066226,5.04393583,148.15,148.14,8.29047127]
[1751713066431,5.04393583,148.16,148.14,8.29047127]
[1751713066616,5.04393583,148.15,148.14,8.29047127]
[1751713066816,5.04393583,148.16,148.14,8.29047127]
[1751713067017,5.04393583,148.15,148.14,8.29047127]
[1751713067218,5.04393583,148.16,148.14,8.29047127]
[1751713067431,5.04393583,148.15,148.14,8.29047127]
[1751713067731,8.86679973,148.16,148.13,6.75077431]
[1751713067943,5.04393583,148.15,148.13,6.75077431]
[1751713068138,3.8228639,148.16,148.13,6.75077431]
[1751713068316,8.86679973,148.16,148.13,6.75077431]
[1751713068615,3.8228639,148.16,148.13,6.75077431]
[1751713069117,3.8228639,148.16,148.12,10.67398975]
[1751713069318,5.04190236,148.15,148.12,6.85112585]
[1751713069538,5.04190236,148.14,148.12,0.1]
[1751713069845,8.86476626,148.14,148.12,0.1]
[1751713070138,5.04190236,148.13,148.12,0.1]
[1751713080845,8.86476626,148.13,148.12,0.1]
[1751713081852,5.04190236,148.13,148.12,0.1]
[1751713090956,15.61559323,148.13,148.12,0.1]
[1751713092039,11.79272933,148.13,148.12,0.1]
[1751713092239,15.61559323,148.13,148.12,0.1]
[1751713094163,21.91797118,148.13,148.12,0.1]
[1751713094357,15.61559323,148.13,148.12,0.1]
[1751713094860,8.86476626,148.13,148.12,0.1]
[1751713095650,15.61559323,148.13,148.12,0.1]
[1751713097663,15.7577548,148.13,148.1,0.1]
[1751713097855,10.13858971,148.11,148.1,0.1]
[1751713098169,15.18049207,148.11,148.1,0.1]
[1751713100365,8.86476626,148.11,148.1,0.1]
[1751713101262,5.04190236,148.11,148.1,0.1]
[1751713106073,3.8228639,148.12,148.1,0.1]
[1751713106276,5.04896105,148.11,148.1,0.1]
[1751713119297,11.36016236,148.11,148.1,0.1]
[1751713120803,5.04896105,148.11,148.1,0.1]
[1751713121296,11.36016236,148.11,148.1,0.1]
[1751713121684,21.93476483,148.11,148.1,0.1]
[1751713126901,18.11190093,148.11,148.1,0.1]
[1751713127198,21.93476483,148.11,148.1,0.1]
[1751713129002,11.36016236,148.11,148.1,0.1]
[1751713134891,11.36016236,148.11,148.1,36.67505836]
[1751713135100,5.04896105,148.11,148.1,38.34055836]
[1751713135396,5.05919362,148.13,148.1,38.34055836]
[1751713135705,5.05919362,148.12,148.1,34.51769446]
[1751713135912,16.88355151,148.16,148.1,34.51769446]
[1751713136207,5.05918591,148.15,148.1,34.51769446]
[1751713136507,5.05918591,148.14,148.1,34.51769446]
[1751713136707,5.05918591,148.13,148.1,34.51769446]
[1751713136907,5.05918591,148.12,148.1,12.34055836]
[1751713139412,5.05918591,148.11,148.1,38.34055836]
[1751713140005,10.13406521,148.15,148.1,38.34055836]
[1751713140206,5.05637171,148.14,148.11,3.8228639]
[1751713140418,5.05637171,148.13,148.11,3.8228639]
[1751713140593,5.05637171,148.12,148.11,3.8228639]
[1751713141301,5.05637171,148.12,148.11,10.57460247]
[1751713145622,5.05637171,148.15,148.11,10.57460247]
[1751713145797,5.05637171,148.14,148.13,3.8228639]
[1751713146702,5.05637171,148.14,148.11,6.75173857]
[1751713146703,5.05637171,148.14,148.12,10.57383088]
[1751713147023,5.05637171,148.13,148.12,10.57383088]
[1751713150227,5.05637171,148.16,148.12,10.57383088]
[1751713150414,5.05637171,148.15,148.13,3.8228639]
[1751713150615,5.05637171,148.14,148.13,3.8228639]
[1751713151420,5.05637171,148.14,148.13,10.57369087]
[1751713152224,5.05637171,148.16,148.13,10.57369087]
[1751713152426,6.31120131,148.18,148.15,3.8228639]
[1751713152620,5.0487983,148.17,148.15,3.8228639]
[1751713152826,5.0487983,148.16,148.15,3.8228639]
[1751713153526,5.0487983,148.16,148.15,10.57277952]
[1751713156130,5.0487983,148.18,148.15,10.57277952]
[1751713156334,5.0487983,148.17,148.16,3.8228639]
[1751713157035,5.0487983,148.17,148.15,3.8228639]
[1751713157335,5.0487983,148.18,148.15,10.57268304]
[1751713157534,5.0487983,148.17,148.15,10.57268304]
[1751713157713,5.0487983,148.18,148.15,10.57268304]
[1751713157918,5.0487983,148.17,148.16,3.8228639]
[1751713158141,5.0487983,148.18,148.16,3.8228639]
[1751713158453,5.0487983,148.17,148.16,3.8228639]
[1751713158619,5.0487983,148.18,148.16,3.8228639]
[1751713158819,5.0487983,148.17,148.16,3.8228639]
[1751713159034,5.0487983,148.18,148.16,3.8228639]
[1751713159240,5.0487983,148.17,148.16,3.8228639]
[1751713159552,5.0487983,148.18,148.16,3.8228639]
[1751713159740,5.0487983,148.17,148.16,3.8228639]
[1751713159947,5.0487983,148.18,148.16,3.8228639]
[1751713160125,5.0487983,148.17,148.16,3.8228639]
[1751713160326,5.0487983,148.18,148.15,3.8228639]
[1751713160522,5.0487983,148.17,148.15,3.8228639]
[1751713160722,5.0487983,148.18,148.15,3.8228639]
[1751713161018,5.0487983,148.17,148.15,3.8228639]
[1751713161213,5.0487983,148.18,148.15,3.8228639]
[1751713161428,5.0487983,148.17,148.15,3.8228639]
[1751713161627,5.0487983,148.18,148.15,3.8228639]
[1751713161874,5.0487983,148.17,148.15,3.8228639]
[1751713162055,5.0487983,148.18,148.15,3.8228639]
[1751713163953,5.0487983,148.17,148.15,3.8228639]
[1751713164250,5.0487983,148.18,148.15,3.8228639]
[1751713164445,5.0487983,148.17,148.15,3.8228639]
[1751713164750,5.0487983,148.18,148.15,3.8228639]
[1751713164950,5.0487983,148.17,148.15,3.8228639]
[1751713165151,5.0487983,148.18,148.15,10.57274042]
[1751713165328,5.0487983,148.17,148.15,10.57274042]
[1751713165528,5.0487983,148.18,148.15,10.57274042]
[1751713165733,5.0487983,148.17,148.15,10.57274042]
[1751713165929,5.0487983,148.18,148.15,10.57274042]
[1751713166426,5.0487983,148.17,148.15,10.57274042]
[1751713166626,5.0487983,148.18,148.15,10.57274042]
[1751713166827,5.0487983,148.17,148.15,10.57274042]
[1751713167028,5.0487983,148.18,148.15,10.57274042]
[1751713167437,5.0487983,148.17,148.15,10.57274042]
[1751713167636,5.0487983,148.18,148.15,10.57274042]
[1751713167845,5.0487983,148.17,148.14,3.8228639]
[1751713168038,5.0487983,148.18,148.14,3.8228639]
[1751713168438,5.0487983,148.17,148.14,3.8228639]
[1751713168637,5.0487983,148.18,148.15,3.8228639]
[1751713168839,5.0487983,148.17,148.15,10.5725713]
[1751713169039,5.0487983,148.18,148.15,10.5725713]
[1751713169256,5.0487983,148.17,148.15,10.5725713]
[1751713169438,5.0487983,148.18,148.15,10.5725713]
[1751713169638,5.0487983,148.17,148.15,10.5725713]
[1751713169862,5.0487983,148.18,148.15,10.5725713]
[1751713170159,5.0487983,148.17,148.15,10.5725713]
[1751713170358,5.0487983,148.18,148.15,10.5725713]
[1751713170667,5.0487983,148.17,148.15,10.5725713]
[1751713170961,5.0487983,148.18,148.15,10.5725713]
[1751713171141,5.0487983,148.17,148.15,10.5725713]
[1751713171344,5.0487983,148.18,148.15,10.5725713]
[1751713171540,5.0487983,148.17,148.15,10.5725713]
[1751713171740,5.0487983,148.18,148.15,10.5725713]
[1751713171956,5.0487983,148.17,148.15,10.5725713]
[1751713172135,5.0487983,148.18,148.15,10.5725713]
[1751713172451,5.04263108,148.17,148.15,10.5725713]
[1751713172631,5.04263108,148.18,148.15,10.5725713]
[1751713172831,5.04263108,148.17,148.15,10.5725713]
[1751713173049,5.04263108,148.18,148.15,10.5725713]
[1751713173245,5.04263108,148.17,148.15,10.5725713]
[1751713173454,5.04263108,148.18,148.15,10.5725713]
[1751713173751,5.04263108,148.17,148.15,10.5725713]
[1751713173950,5.04263108,148.18,148.15,10.5725713]
[1751713174248,5.04368779,148.17,148.15,10.5725713]
[1751713174556,5.04368779,148.16,148.15,10.5725713]
[1751713174734,5.04368779,148.18,148.15,10.5725713]
[1751713174933,5.04368779,148.17,148.15,10.5725713]
[1751713175255,5.04368779,148.16,148.14,3.8228639]
[1751713175433,5.04368779,148.18,148.14,3.8228639]
[1751713175638,5.04368779,148.17,148.14,3.8228639]
[1751713175932,5.04368779,148.16,148.14,3.8228639]
[1751713176127,5.04368779,148.18,148.14,3.8228639]
[1751713176333,5.04368779,148.17,148.15,6.74991562]
[1751713176651,3.8828639,148.19,148.15,6.74991562]
[1751713176652,5.04368779,148.16,148.15,6.74991562]
[1751713176867,5.04368779,148.18,148.15,6.74991562]
[1751713177037,5.04368779,148.17,148.15,6.74991562]
[1751713177236,5.04368779,148.16,148.15,6.74991562]
[1751713180059,5.04368779,148.16,148.13,6.75082697]
[1751713180238,5.04368779,148.15,148.13,10.57369087]
[1751713180432,3.8228639,148.18,148.13,10.57369087]
[1751713180757,5.05272392,148.17,148.13,10.57369087]
[1751713180941,5.05272392,148.16,148.13,10.57369087]
[1751713181138,5.05272392,148.15,148.14,10.57323517]
[1751713214567,5.05272392,148.15,148.14,29.22288403]
[1751713214878,0.06,148.19,148.14,29.22288403]
[1751713215189,5.06296569,148.18,148.17,3.8228639]
[1751713216387,5.06296569,148.18,148.17,10.57186842]
[1751713221681,8.88582959,148.18,148.13,32.75082697]
[1751713221993,8.88582959,148.17,148.13,32.75082697]
[1751713222201,5.06296569,148.16,148.13,32.75082697]
[1751713222375,5.06296569,148.15,148.13,6.75082697]
[1751713222578,3.8228639,148.17,148.13,6.75082697]
[1751713222874,5.0568611,148.16,148.13,6.75082697]